fUST/lending_fUST_20250724
["ID","MTS","AMOUNT","RATE_DAILY","PERIOD"]
[374551387,1753350656950,-180.0,0.00023998,2]
[374551388,1753350656960,-151.0,0.00024,7]
[374551389,1753350656971,-151.0,0.00024,7]
[374551390,1753350656982,-151.0,0.00024,7]
[374551391,1753350656994,-526.24749348,0.00024,7]
[374551392,1753350657004,-160.0,0.00024,7]
[374551393,1753350657014,-160.0,0.00024,10]
[374551394,1753350657024,-180.0,0.00024015,2]
[374551395,1753350657034,-180.0,0.00024037,2]
[374551396,1753350657044,-1663.1687283,0.00024038,10]
[374551397,1753350657054,-450.0,0.00024068,2]
[374551398,1753350657064,-180.0,0.00024075,2]
[374551399,1753350657076,-548.28386372,0.00024094,2]
[374551400,1753350657086,-151.0,0.000241,7]
[374551401,1753350657097,-151.0,0.000241,7]
[374551402,1753350657107,-8291.67,0.000241,7]
[374551403,1753350657117,-151.0,0.00024109,7]
[374551404,1753350657127,-151.0,0.00024109,7]
[374551405,1753350657139,-151.0,0.00024109,7]
[374551406,1753350657148,-151.0,0.00024109,7]
[374551407,1753350657158,-151.0,0.00024109,7]
[374551408,1753350657167,-460.0,0.00024109,2]
[374551409,1753350657177,-1095.36,0.00024109,2]
[374551410,1753350657187,-460.0,0.00024109,2]
[374551411,1753350657197,-715.51,0.00024109,2]
[374551412,1753350657207,-1570.55,0.00024109,2]
[374551413,1753350657217,-460.0,0.00024109,2]
[374551414,1753350657227,-460.0,0.00024109,2]
[374551415,1753350657237,-312.55890489,0.00024109,2]
[374551416,1753350657247,-831.1697042,0.00024109,2]
[374551417,1753350657261,-1099.2902958,0.00024109,2]
[374551418,1753350657271,-460.0,0.00024109,2]
[374551419,1753350657281,-1469.12,0.00024109,2]
[374551420,1753350657290,-907.93,0.00024109,2]
[374551421,1753350657300,-706.17,0.00024109,2]
[374551422,1753350657311,-597.39356896,0.00024109,2]
[374551423,1753350657324,-1446.03643104,0.00024109,2]
[374551424,1753350657334,-1877.29,0.00024109,2]
[374551425,1753350657344,-3550.26,0.00024109,2]
[374551426,1753350657354,-975.91,0.00024109,2]
[374551427,1753350657364,-631.89275693,0.00024109,2]
[374551428,1753350657430,-460.0,0.00019178,2]
[374551429,1753350657441,-314.15686143,0.00019178,2]
[374551430,1753350657451,-460.0,0.00019452,2]
[374551431,1753350657461,-376.64724307,0.00024109,2]
[374551432,1753350657471,-577.29465306,0.00024109,2]
[374551433,1753350657482,-881.85,0.00024109,2]
[374551434,1753350657492,-815.32,0.00024109,2]
[374551435,1753350657502,-669.93,0.00024109,2]
[374551436,1753350657511,-622.0,0.0002411,2]
[374551437,1753350657521,-882.0,0.0002411,2]
[374551438,1753350657531,-1694.4079391,0.0002411,2]
[374551439,1753350657541,-162.55899979,0.00024137,2]
[374551440,1753350657551,-150.57438,0.00024146,2]
[374551441,1753350657560,-1086.70693008,0.00024153,7]
[374551442,1753350657575,-1522.01,0.000242,7]
[374551443,1753350657585,-151.0,0.000242,7]
[374551444,1753350657594,-151.0,0.000242,7]
[374551445,1753350657604,-151.0,0.000242,7]
[374551446,1753350657614,-151.0,0.000242,7]
[374551447,1753350657625,-151.0,0.000242,7]
[374551448,1753350657635,-2896.92628219,0.000242,2]
[374551449,1753350657653,-292.90480243,0.000242,2]
[374551450,1753350657665,-1793.91702006,0.000242,2]
[374551451,1753350657680,-3708.0603511,0.000242,2]
[374551452,1753350657692,-611.0,0.000242,2]
[374551453,1753350657703,-7543.66845612,0.000242,2]
[374551471,1753351020612,151.0,0.00018,2]
[374551472,1753351020920,151.0,0.000166,2]
[374551473,1753351021209,151.0,0.000152,2]
[374551474,1753351021565,151.0,0.000138,2]
[374551481,1753351368166,159.139685,0.00013699,2]
[374551483,1753351499754,150.0,0.00014666,2]
[374551484,1753351532146,-210.80178908,0.00019068,2]
[374551485,1753351532168,-210.80178908,0.00019071,2]
[374551486,1753351532193,-210.80178908,0.00019073,2]
[374551487,1753351532215,-210.80178908,0.00019076,2]
[374551488,1753351532237,-590.36878323,0.00019078,2]
[374551493,1753351631524,-210.80178908,0.00019068,2]
[374551494,1753351631545,-15.98401982,0.00019078,2]
[374551495,1753351631567,-560.28051691,0.00019078,2]
[374551496,1753351646094,-716.4586051,0.00019078,2]
[374551497,1753351646116,-776.08,0.00019168,3]
[374551498,1753351646139,-300.0,0.00019176,2]
[374551499,1753351646160,-300.0,0.00019177,2]
[374551500,1753351646181,-300.0,0.00019177,2]
[374551501,1753351646202,-233.87526167,0.00019177,2]
[374551615,1753351832236,-150.0,0.000189,2]
[374551617,1753351832246,-485.08224244,0.00019078,2]
[374551619,1753351832256,-3408.422673,0.00019078,2]
[374551621,1753351832266,-500.0,0.00019173,2]
[374551623,1753351832275,-300.0,0.00019176,2]
[374551626,1753351832290,-758.0,0.00019176,2]
[374551628,1753351832300,-500.0,0.00019177,2]
[374551630,1753351832309,-500.0,0.00019177,2]
[374551632,1753351832319,-384.97710483,0.00019177,2]
[374551634,1753351832328,-341.10576089,0.00019177,2]
[374551636,1753351832338,-500.0,0.00019177,2]
[374551638,1753351832347,-500.0,0.00019177,2]
[374551640,1753351832357,-155.56675762,0.00019177,2]
[374551641,1753351832366,-460.0,0.00019178,2]
[374551644,1753351832377,-460.0,0.00019178,2]
[374551647,1753351832386,-460.0,0.00019178,2]
[374551650,1753351832396,-460.0,0.00019178,2]
[374551652,1753351832406,-274.71771532,0.00019178,2]
[374551654,1753351832418,-461.27915219,0.00019178,2]
[374551656,1753351832427,-461.58703775,0.00019178,2]
[374551658,1753351832436,-460.0,0.00019178,2]
[374551660,1753351832445,-460.0,0.00019178,2]
[374551662,1753351832455,-460.0,0.00019178,2]
[374551664,1753351832464,-460.0,0.00019178,2]
[374551666,1753351832474,-460.0,0.00019178,2]
[374551668,1753351832483,-460.0,0.00019178,2]
[374551670,1753351832494,-460.0,0.00019178,2]
[374551672,1753351832503,-460.0,0.00019178,2]
[374551674,1753351832513,-460.0,0.00019178,2]
[374551676,1753351832522,-460.0,0.00019178,2]
[374551678,1753351832532,-464.4710851,0.00019178,2]
[374551680,1753351832541,-460.0,0.00019178,2]
[374551682,1753351832551,-460.0,0.00019178,2]
[374551684,1753351832560,-460.0,0.00019178,2]
[374551686,1753351832571,-460.0,0.00019178,2]
[374551688,1753351832581,-460.0,0.00019178,2]
[374551690,1753351832590,-460.0,0.00019178,2]
[374551692,1753351832599,-460.77353787,0.00019178,2]
[374551694,1753351832609,-460.0,0.00019178,2]
[374551695,1753351832618,-460.0,0.00019178,2]
[374551696,1753351832627,-286.19943178,0.00019178,2]
[374551697,1753351832638,-460.0,0.00019178,2]
[374551699,1753351832647,-460.0,0.00019178,2]
[374551700,1753351832656,-460.0,0.00019178,2]
[374551701,1753351832666,-460.0,0.00019178,2]
[374551703,1753351832676,-460.0,0.00019178,2]
[374551704,1753351832685,-460.0,0.00019178,2]
[374551706,1753351832695,-461.68435102,0.00019178,2]
[374551707,1753351832704,-463.11919013,0.00019178,2]
[374551708,1753351832714,-460.0,0.00019178,2]
[374551709,1753351832724,-460.0,0.00019178,2]
[374551710,1753351832738,-460.0,0.00019178,2]
[374551711,1753351832748,-739.48,0.00019178,2]
[374551712,1753351832758,-460.0,0.00019178,2]
[374551713,1753351832768,-460.0,0.00019178,2]
[374551714,1753351832778,-460.0,0.00019178,2]
[374551715,1753351832788,-460.0,0.00019178,2]
[374551716,1753351832798,-460.0,0.00019178,2]
[374551717,1753351832808,-460.0,0.00019178,2]
[374551718,1753351832818,-460.0,0.00019178,2]
[374551719,1753351832827,-276.21034575,0.00019178,2]
[374551720,1753351832837,-460.0,0.00019178,2]
[374551721,1753351832846,-460.0,0.00019178,2]
[374551722,1753351832855,-460.0,0.00019178,2]
[374551723,1753351832865,-460.0,0.00019178,2]
[374551724,1753351832875,-463.79116499,0.00019178,2]
[374551725,1753351832885,-460.0,0.00019178,2]
[374551726,1753351832894,-460.0,0.00019178,2]
[374551729,1753351832903,-460.0,0.00019178,2]
[374551731,1753351832913,-460.80743503,0.00019178,2]
[374551734,1753351832923,-599.73709783,0.00019178,2]
[374551737,1753351832933,-460.0,0.00019178,2]
[374551739,1753351832941,-460.0,0.00019178,2]
[374551741,1753351832951,-1621.45,0.00019178,2]
[374551742,1753351832960,-462.16398892,0.00019178,2]
[374551745,1753351832970,-461.12172303,0.00019178,2]
[374551746,1753351832979,-460.0,0.00019178,2]
[374551748,1753351832989,-461.83310505,0.00019178,2]
[374551751,1753351832998,-460.0,0.00019178,2]
[374551753,1753351833008,-602.0158572,0.00019178,2]
[374551755,1753351833017,-460.0,0.00019178,2]
[374551756,1753351833028,-460.0,0.00019178,2]
[374551758,1753351833037,-460.0,0.00019178,2]
[374551761,1753351833047,-460.0,0.00019178,2]
[374551762,1753351833057,-460.0,0.00019178,2]
[374551764,1753351833068,-460.0,0.00019178,2]
[374551765,1753351833077,-460.0,0.00019178,2]
[374551766,1753351833088,-542.52178713,0.00019178,2]
[374551767,1753351833097,-461.83340854,0.00019178,2]
[374551768,1753351833107,-460.0,0.00019178,2]
[374551769,1753351833117,-460.0,0.00019178,2]
[374551770,1753351833127,-463.12765611,0.00019178,2]
[374551771,1753351833137,-442.08402662,0.00019178,2]
[374551772,1753351833147,-461.40002073,0.00019178,2]
[374551773,1753351833157,-460.0,0.00019178,2]
[374551774,1753351833167,-460.0,0.00019178,2]
[374551775,1753351833177,-460.0,0.00019178,2]
[374551776,1753351833187,-460.0,0.00019178,2]
[374551777,1753351833198,-460.0,0.00019178,2]
[374551778,1753351833207,-460.0,0.00019178,2]
[374551780,1753351833217,-460.0,0.00019178,2]
[374551781,1753351833227,-460.0,0.00019178,2]
[374551782,1753351833237,-460.0,0.00019178,2]
[374551783,1753351833247,-460.0,0.00019178,2]
[374551784,1753351833257,-460.0,0.00019178,2]
[374551785,1753351833267,-1000.0,0.00019178,2]
[374551786,1753351833277,-341.20887599,0.00019178,2]
[374551787,1753351833286,-460.0,0.00019178,2]
[374551788,1753351833296,-460.0,0.00019178,2]
[374551789,1753351833305,-460.0,0.00019178,2]
[374551790,1753351833315,-460.0,0.00019178,2]
[374551791,1753351833324,-1025.92,0.00019178,2]
[374551792,1753351833335,-460.0,0.00019178,2]
[374551793,1753351833344,-460.0,0.00019178,2]
[374551794,1753351833353,-460.0,0.00019178,2]
[374551795,1753351833362,-460.0,0.00019178,2]
[374551796,1753351833372,-592.50158409,0.00019178,2]
[374551797,1753351833384,-451.80588308,0.00019178,2]
[374551798,1753351833416,-26.17085571,0.00019178,2]
[374551799,1753351833425,-273.82914429,0.00019178,2]
[374551800,1753351833438,-188.13009881,0.00019178,2]
[374551801,1753351833448,-460.0,0.00019178,2]
[374551802,1753351833457,-460.0,0.00019178,2]
[374551803,1753351833467,-460.0,0.00019178,2]
[374551804,1753351833477,-460.0,0.00019178,2]
[374551805,1753351833486,-460.0,0.00019178,2]
[374551806,1753351833495,-460.0,0.00019178,2]
[374551807,1753351833505,-460.0,0.00019178,2]
[374551808,1753351833514,-460.0,0.00019178,2]
[374551809,1753351833524,-460.0,0.00019178,2]
[374551810,1753351833533,-460.0,0.00019178,2]
[374551811,1753351833544,-460.0,0.00019178,2]
[374551812,1753351833554,-460.0,0.00019178,2]
[374551813,1753351833564,-464.21847276,0.00019178,2]
[374551814,1753351833574,-460.0,0.00019178,2]
[374551815,1753351833583,-460.0,0.00019178,2]
[374551816,1753351833593,-177.65142843,0.00019178,2]
[374551817,1753351833606,-282.90004319,0.00019178,2]
[374551818,1753351833616,-460.0,0.00019178,2]
[374551819,1753351833626,-460.0,0.00019178,2]
[374551820,1753351833636,-460.0,0.00019178,2]
[374551821,1753351833647,-263.83439195,0.00019178,2]
[374551822,1753351833659,-196.16560805,0.00019178,2]
[374551823,1753351833669,-460.0,0.00019178,2]
[374551824,1753351833678,-460.0,0.00019178,2]
[374551825,1753351833688,-380.99330358,0.00019178,2]
[374551826,1753351833698,-364.26635084,0.00019178,2]
[374551862,1753351838081,-95.73364916,0.00019178,2]
[374551864,1753351838091,-460.0,0.00019178,2]
[374551866,1753351838101,-460.0,0.00019178,2]
[374551868,1753351838110,-460.0,0.00019178,2]
[374551869,1753351838120,-460.0,0.00019178,2]
[374551870,1753351838131,-464.28282012,0.00019178,2]
[374551872,1753351838140,-460.0,0.00019178,2]
[374551873,1753351838149,-460.0,0.00019178,2]
[374551874,1753351838159,-460.0,0.00019178,2]
[374551876,1753351838168,-460.0,0.00019178,2]
[374551877,1753351838178,-460.0,0.00019178,2]
[374551879,1753351838187,-460.0,0.00019178,2]
[374551881,1753351838196,-460.0,0.00019178,2]
[374551882,1753351838206,-490.61039705,0.00019178,2]
[374551883,1753351838215,-460.0,0.00019178,2]
[374551884,1753351838228,-460.0,0.00019178,2]
[374551885,1753351838237,-460.0,0.00019178,2]
[374551888,1753351838247,-460.0,0.00019178,2]
[374551889,1753351838256,-460.0,0.00019178,2]
[374551890,1753351838265,-460.0,0.00019178,2]
[374551891,1753351838275,-461.97032212,0.00019178,2]
[374551892,1753351838284,-460.0,0.00019178,2]
[374551893,1753351838294,-460.0,0.00019178,2]
[374551894,1753351838304,-460.0,0.00019178,2]
[374551895,1753351838314,-460.0,0.00019178,2]
[374551896,1753351838324,-460.0,0.00019178,2]
[374551897,1753351838334,-460.0,0.00019178,2]
[374551898,1753351838343,-460.0,0.00019178,2]
[374551899,1753351838353,-460.0,0.00019178,2]
[374551900,1753351838363,-460.0,0.00019178,2]
[374551901,1753351838373,-500.0,0.00019178,2]
[374551902,1753351838384,-500.0,0.00019178,2]
[374551903,1753351838395,-614.29079969,0.00019178,2]
[374551904,1753351838404,-460.0,0.00019178,2]
[374551905,1753351838413,-460.0,0.00019178,2]
[374551906,1753351838423,-460.0,0.00019178,2]
[374551907,1753351838432,-460.0,0.00019178,2]
[374551908,1753351838442,-460.0,0.00019178,2]
[374551909,1753351838452,-460.0,0.00019178,2]
[374551910,1753351838462,-460.0,0.00019178,2]
[374551911,1753351838471,-460.0,0.00019178,2]
[374551912,1753351838481,-460.0,0.00019178,2]
[374551913,1753351838491,-460.0,0.00019178,2]
[374551914,1753351838500,-460.0,0.00019178,2]
[374551915,1753351838510,-460.0,0.00019178,2]
[374551916,1753351838520,-460.0,0.00019178,2]
[374551917,1753351838530,-460.0,0.00019178,2]
[374551918,1753351838540,-460.0,0.00019178,2]
[374551919,1753351838550,-460.0,0.00019178,2]
[374551920,1753351838560,-461.15302071,0.00019178,2]
[374551921,1753351838570,-460.0,0.00019178,2]
[374551922,1753351838579,-460.0,0.00019178,2]
[374551923,1753351838589,-460.0,0.00019178,2]
[374551924,1753351838598,-460.0,0.00019178,2]
[374551925,1753351838608,-460.0,0.00019178,2]
[374551926,1753351838617,-460.0,0.00019178,2]
[374551927,1753351838627,-462.08499496,0.00019178,2]
[374551928,1753351838637,-460.0,0.00019178,2]
[374551929,1753351838647,-460.0,0.00019178,2]
[374551930,1753351838657,-460.0,0.00019178,2]
[374551931,1753351838667,-462.28802853,0.00019178,2]
[374551932,1753351838677,-462.14548734,0.00019178,2]
[374551933,1753351838688,-460.0,0.00019178,2]
[374551934,1753351838700,-462.2374692,0.00019178,2]
[374551935,1753351838711,-460.0,0.00019178,2]
[374551936,1753351838721,-460.0,0.00019178,2]
[374551937,1753351838734,-460.0,0.00019178,2]
[374551938,1753351838744,-460.0,0.00019178,2]
[374551939,1753351838753,-460.0,0.00019178,2]
[374551940,1753351838763,-458.59210166,0.00019178,2]
[374551941,1753351838774,-460.0,0.00019178,2]
[374551942,1753351838784,-460.0,0.00019178,2]
[374551943,1753351838794,-460.0,0.00019178,2]
[374551944,1753351838803,-463.7001048,0.00019178,2]
[374551945,1753351838814,-460.0,0.00019178,2]
[374551946,1753351838824,-460.0,0.00019178,2]
[374551947,1753351838833,-460.0,0.00019178,2]
[374551948,1753351838843,-460.0,0.00019178,2]
[374551949,1753351838853,-460.0,0.00019178,2]
[374551950,1753351838862,-460.0,0.00019178,2]
[374551951,1753351838872,-460.0,0.00019178,2]
[374551952,1753351838883,-460.0,0.00019178,2]
[374551953,1753351838893,-460.0,0.00019178,2]
[374551954,1753351838903,-460.0,0.00019178,2]
[374551955,1753351838912,-460.0,0.00019178,2]
[374551956,1753351838922,-460.0,0.00019178,2]
[374551957,1753351838931,-460.0,0.00019178,2]
[374551958,1753351838941,-460.71485847,0.00019178,2]
[374551959,1753351838950,-460.0,0.00019178,2]
[374551960,1753351838959,-461.09084379,0.00019178,2]
[374551961,1753351838969,-460.0,0.00019178,2]
[374551962,1753351838979,-460.0,0.00019178,2]
[374551963,1753351838989,-461.38223286,0.00019178,2]
[374551964,1753351838998,-460.0,0.00019178,2]
[374551965,1753351839008,-460.0,0.00019178,2]
[374551966,1753351839018,-463.43741817,0.00019178,2]
[374551967,1753351839028,-460.0,0.00019178,2]
[374551968,1753351839038,-460.0,0.00019178,2]
[374551969,1753351839047,-460.0,0.00019178,2]
[374551970,1753351839057,-460.0,0.00019178,2]
[374551971,1753351839067,-460.0,0.00019178,2]
[374551972,1753351839076,-460.0,0.00019178,2]
[374551973,1753351839086,-460.0,0.00019178,2]
[374551974,1753351839095,-2562.09,0.00019178,2]
[374551975,1753351839103,-460.0,0.00019178,2]
[374551976,1753351839113,-460.0,0.00019178,2]
[374551977,1753351839123,-460.0,0.00019178,2]
[374551978,1753351839133,-460.0,0.00019178,2]
[374551979,1753351839143,-460.0,0.00019178,2]
[374551980,1753351839154,-460.0,0.00019178,2]
[374551981,1753351839163,-460.0,0.00019178,2]
[374551982,1753351839173,-460.0,0.00019178,2]
[374551983,1753351839183,-327.56504906,0.00019178,2]
[374551984,1753351839192,-460.0,0.00019178,2]
[374551985,1753351839201,-461.21925165,0.00019178,2]
[374551986,1753351839211,-460.0,0.00019178,2]
[374551987,1753351839220,-460.0,0.00019178,2]
[374551988,1753351839230,-517.6822895,0.00019178,2]
[374551989,1753351839239,-460.0,0.00019178,2]
[374551990,1753351839249,-460.0,0.00019178,2]
[374551991,1753351839258,-460.0,0.00019178,2]
[374551992,1753351839267,-460.0,0.00019178,2]
[374551993,1753351839277,-460.0,0.00019178,2]
[374551994,1753351839287,-460.0,0.00019178,2]
[374551995,1753351839297,-460.0,0.00019178,2]
[374551996,1753351839308,-460.0,0.00019178,2]
[374551997,1753351839319,-500.4474808,0.00019178,2]
[374551998,1753351839328,-460.0,0.00019178,2]
[374551999,1753351839337,-460.0,0.00019178,2]
[374552000,1753351839347,-460.0,0.00019178,2]
[374552001,1753351839356,-460.0,0.00019178,2]
[374552002,1753351839365,-460.0,0.00019178,2]
[374552003,1753351839375,-460.0,0.00019178,2]
[374552004,1753351839386,-461.56046994,0.00019178,2]
[374552006,1753351839396,-358.31483779,0.00019178,2]
[374552007,1753351839405,-460.0,0.00019178,2]
[374552008,1753351839415,-460.0,0.00019178,2]
[374552009,1753351839424,-460.0,0.00019178,2]
[374552010,1753351839433,-460.0,0.00019178,2]
[374552011,1753351839443,-460.0,0.00019178,2]
[374552012,1753351839452,-460.0,0.00019178,2]
[374552014,1753351839462,-460.0,0.00019178,2]
[374552015,1753351839471,-460.0,0.00019178,2]
[374552016,1753351839482,-460.0,0.00019178,2]
[374552017,1753351839492,-460.0,0.00019178,2]
[374552018,1753351839502,-460.0,0.00019178,2]
[374552019,1753351839511,-460.82118327,0.00019178,2]
[374552020,1753351839521,-460.0,0.00019178,2]
[374552021,1753351839530,-833.32,0.00019178,2]
[374552022,1753351839539,-460.0,0.00019178,2]
[374552023,1753351839548,-460.0,0.00019178,2]
[374552024,1753351839558,-460.0,0.00019178,2]
[374552025,1753351839567,-460.0,0.00019178,2]
[374552026,1753351839577,-460.0,0.00019178,2]
[374552027,1753351839587,-460.0,0.00019178,2]
[374552028,1753351839596,-460.0,0.00019178,2]
[374552029,1753351839606,-460.0,0.00019178,2]
[374552031,1753351839626,-615.05,0.00019178,2]
[374552032,1753351839639,-460.0,0.00019178,2]
[374552033,1753351839650,-460.0,0.00019178,2]
[374552034,1753351839660,-460.0,0.00019178,2]
[374552035,1753351839670,-460.0,0.00019178,2]
[374552036,1753351839680,-460.0,0.00019178,2]
[374552037,1753351839690,-460.0,0.00019178,2]
[374552038,1753351839700,-460.0,0.00019178,2]
[374552039,1753351839710,-460.0,0.00019178,2]
[374552040,1753351839722,-460.0,0.00019178,2]
[374552041,1753351839733,-460.0,0.00019178,2]
[374552042,1753351839743,-460.0,0.00019178,2]
[374552045,1753351839753,-460.0,0.00019178,2]
[374552047,1753351839763,-460.0,0.00019178,2]
[374552049,1753351839773,-460.0,0.00019178,2]
[374552051,1753351839783,-460.0,0.00019178,2]
[374552053,1753351839794,-460.0,0.00019178,2]
[374552055,1753351839804,-460.0,0.00019178,2]
[374552057,1753351839814,-460.0,0.00019178,2]
[374552059,1753351839824,-460.0,0.00019178,2]
[374552061,1753351839834,-462.19704695,0.00019178,2]
[374552063,1753351839844,-460.0,0.00019178,2]
[374552065,1753351839854,-460.0,0.00019178,2]
[374552067,1753351839864,-500.0,0.00019178,2]
[374552069,1753351839874,-500.0,0.00019178,2]
[374552071,1753351839887,-500.0,0.00019178,2]
[374552072,1753351839898,-500.0,0.00019178,2]
[374552073,1753351839907,-500.0,0.00019178,2]
[374552075,1753351839917,-500.0,0.00019178,2]
[374552079,1753351840067,-460.0,0.00019178,2]
[374552080,1753351840077,-460.0,0.00019178,2]
[374552081,1753351840090,-460.0,0.00019178,2]
[374552082,1753351840099,-460.0,0.00019178,2]
[374552083,1753351840110,-460.0,0.00019178,2]
[374552084,1753351840120,-460.0,0.00019178,2]
[374552085,1753351840130,-460.0,0.00019178,2]
[374552086,1753351840142,-460.0,0.00019178,2]
[374552087,1753351840152,-460.0,0.00019178,2]
[374552088,1753351840165,-460.0,0.00019178,2]
[374552089,1753351840185,-460.0,0.00019178,2]
[374552090,1753351840204,-461.95564146,0.00019178,2]
[374552091,1753351840214,-460.0,0.00019178,2]
[374552092,1753351840224,-460.0,0.00019178,2]
[374552093,1753351840235,-460.0,0.00019178,2]
[374552094,1753351840244,-460.0,0.00019178,2]
[374552095,1753351840253,-460.0,0.00019178,2]
[374552097,1753351840263,-460.76568582,0.00019178,2]
[374552098,1753351840273,-1320.28,0.00019178,2]
[374552099,1753351840283,-460.0,0.00019178,2]
[374552100,1753351840293,-460.0,0.00019178,2]
[374552101,1753351840303,-460.0,0.00019178,2]
[374552102,1753351840313,-460.0,0.00019178,2]
[374552103,1753351840323,-460.0,0.00019178,2]
[374552104,1753351840332,-460.0,0.00019178,2]
[374552105,1753351840342,-460.0,0.00019178,2]
[374552106,1753351840352,-460.0,0.00019178,2]
[374552107,1753351840361,-460.0,0.00019178,2]
[374552108,1753351840371,-460.0,0.00019178,2]
[374552109,1753351840384,-460.0,0.00019178,2]
[374552110,1753351840397,-747.65,0.00019178,2]
[374552111,1753351840410,-747.65,0.00019178,2]
[374552112,1753351840420,-1935.6,0.00019178,2]
[374552113,1753351840430,-460.0,0.00019178,2]
[374552114,1753351840439,-460.0,0.00019178,2]
[374552115,1753351840448,-460.0,0.00019178,2]
[374552116,1753351840457,-460.0,0.00019178,2]
[374552117,1753351840466,-460.0,0.00019178,2]
[374552119,1753351840476,-460.0,0.00019178,2]
[374552120,1753351840485,-460.0,0.00019178,2]
[374552121,1753351840494,-460.0,0.00019178,2]
[374552122,1753351840504,-460.0,0.00019178,2]
[374552123,1753351840513,-460.0,0.00019178,2]
[374552124,1753351840523,-460.0,0.00019178,2]
[374552125,1753351840533,-460.0,0.00019178,2]
[374552126,1753351840543,-460.0,0.00019178,2]
[374552127,1753351840552,-554.16,0.00019178,2]
[374552128,1753351840562,-460.0,0.00019178,2]
[374552129,1753351840571,-460.0,0.00019178,2]
[374552130,1753351840581,-460.0,0.00019178,2]
[374552131,1753351840590,-462.62551492,0.00019178,2]
[374552132,1753351840600,-460.0,0.00019178,2]
[374552133,1753351840610,-460.0,0.00019178,2]
[374552134,1753351840619,-460.0,0.00019178,2]
[374552135,1753351840629,-460.0,0.00019178,2]
[374552136,1753351840640,-460.0,0.00019178,2]
[374552137,1753351840650,-571.72319245,0.00019178,2]
[374552138,1753351840660,-460.0,0.00019178,2]
[374552139,1753351840669,-460.0,0.00019178,2]
[374552140,1753351840678,-460.0,0.00019178,2]
[374552141,1753351840691,-460.0,0.00019178,2]
[374552142,1753351840702,-460.0,0.00019178,2]
[374552143,1753351840711,-460.0,0.00019178,2]
[374552144,1753351840722,-460.0,0.00019178,2]
[374552145,1753351840733,-460.0,0.00019178,2]
[374552146,1753351840743,-460.0,0.00019178,2]
[374552147,1753351840753,-460.0,0.00019178,2]
[374552148,1753351840762,-460.0,0.00019178,2]
[374552149,1753351840772,-500.0,0.00019178,2]
[374552150,1753351840782,-500.0,0.00019178,2]
[374552151,1753351840792,-972.56,0.00019178,2]
[374552152,1753351840801,-500.0,0.00019178,2]
[374552153,1753351840814,-500.0,0.00019178,2]
[374552154,1753351840825,-500.0,0.00019178,2]
[374552155,1753351840834,-203.87518348,0.00019178,2]
[374552156,1753351840844,-460.0,0.00019178,2]
[374552157,1753351840854,-460.0,0.00019178,2]
[374552158,1753351840863,-460.0,0.00019178,2]
[374552159,1753351840874,-460.0,0.00019178,2]
[374552160,1753351840885,-307.41704682,0.00019178,2]